[Event "Titled Tuesday Blitz April 18 Early 2023"]
[White "Paravyan, David"]
[Black "Kozin, Yuri"]
[WhiteFideId "4194985"]
[BlackFideId "4129920"]
[WhiteElo "2563"]
[BlackElo "2637"]
[Result "1-0"]
[Round "07"]
[TimeControl "180+2"]
[Date "2023.04.18"]
[WhiteClock "0:00:45"]
[BlackClock "0:00:09"]

1. e4 {[%clk 0:03:00]}  c5 {[%clk 0:02:59]} 2. Nf3 {[%clk 0:03:00]}  e6 {[%clk 0:03:00]} 3. d4 {[%clk 0:03:00]}  cxd4 {[%clk 0:03:01]} 4. Nxd4 {[%clk 0:03:01]}  Nf6 {[%clk 0:03:02]} 5. Nd2 {[%clk 0:03:00]}  Nc6 {[%clk 0:03:01]} 6. Nxc6 {[%clk 0:03:00]}  bxc6 {[%clk 0:03:02]} 7. e5 {[%clk 0:03:01]}  Nd5 {[%clk 0:03:01]} 8. Nc4 {[%clk 0:03:00]}  Ba6 {[%clk 0:02:55]} 9. c3 {[%clk 0:03:00]}  Bxc4 {[%clk 0:02:55]} 10. Bxc4 {[%clk 0:03:01]}  Qc7 {[%clk 0:02:51]} 11. Qe2 {[%clk 0:03:01]}  Be7 {[%clk 0:02:47]} 12. O-O {[%clk 0:03:01]}  O-O {[%clk 0:02:47]} 13. g3 {[%clk 0:02:53]}  a5 {[%clk 0:02:45]} 14. a4 {[%clk 0:02:51]}  Rab8 {[%clk 0:02:41]} 15. h4 {[%clk 0:02:52]}  f6 {[%clk 0:02:32]} 16. exf6 {[%clk 0:02:52]}  Bxf6 {[%clk 0:02:32]} 17. Bd3 {[%clk 0:02:46]}  Be5 {[%clk 0:02:23]} 18. Kg2 {[%clk 0:02:44]}  Bd6 {[%clk 0:02:16]} 19. Bg5 {[%clk 0:02:43]}  Nf6 {[%clk 0:02:12]} 20. Rad1 {[%clk 0:02:40]}  Be7 {[%clk 0:02:04]} 21. Bf4 {[%clk 0:02:37]}  Qb7 {[%clk 0:01:59]} 22. Bxb8 {[%clk 0:02:38]}  Rxb8 {[%clk 0:01:59]} 23. Rd2 {[%clk 0:02:38]}  Nd5 {[%clk 0:01:52]} 24. Be4 {[%clk 0:02:38]}  Rf8 {[%clk 0:01:49]} 25. Rfd1 {[%clk 0:02:35]}  Bc5 {[%clk 0:01:48]} 26. Bf3 {[%clk 0:02:27]}  Qc8 {[%clk 0:01:39]} 27. Qe5 {[%clk 0:02:13]}  Ba7 {[%clk 0:01:33]} 28. Bxd5 {[%clk 0:02:10]}  cxd5 {[%clk 0:01:32]} 29. Re2 {[%clk 0:02:02]}  Bb8 {[%clk 0:01:30]} 30. Qe3 {[%clk 0:02:02]}  Qc4 {[%clk 0:01:25]} 31. Rd4 {[%clk 0:02:00]}  Qc6 {[%clk 0:01:23]} 32. Rg4 {[%clk 0:01:46]}  Bd6 {[%clk 0:01:10]} 33. h5 {[%clk 0:01:41]}  Bc5 {[%clk 0:01:08]} 34. Qg5 {[%clk 0:01:39]}  Rf7 {[%clk 0:01:06]} 35. Kh2 {[%clk 0:01:30]}  Be7 {[%clk 0:01:00]} 36. Qe5 {[%clk 0:01:17]}  Bf6 {[%clk 0:00:55]} 37. Qe3 {[%clk 0:01:14]}  Kf8 {[%clk 0:00:44]} 38. h6 {[%clk 0:01:14]}  g6 {[%clk 0:00:44]} 39. Qd3 {[%clk 0:01:13]}  Kg8 {[%clk 0:00:41]} 40. Qb5 {[%clk 0:01:13]}  Qc7 {[%clk 0:00:40]} 41. Kg2 {[%clk 0:01:08]}  Be5 {[%clk 0:00:37]} 42. c4 {[%clk 0:00:51]}  Bd6 {[%clk 0:00:16]} 43. cxd5 {[%clk 0:00:52]}  e5 {[%clk 0:00:16]} 44. Rc4 {[%clk 0:00:52]}  Qd8 {[%clk 0:00:15]} 45. b3 {[%clk 0:00:50]}  Rf8 {[%clk 0:00:13]} 46. Rce4 {[%clk 0:00:48]}  Qf6 {[%clk 0:00:13]} 47. Qxd7 {[%clk 0:00:45]}  Qf3+ {[%clk 0:00:09]} 48. Kg1 {[%clk 0:00:45]}  Qf7 {[%clk 0:00:09]} 49. Qxd6 {[%clk 0:00:45]} 1-0


[Site "https://www.chess.com"]

[Event "Titled Tuesday Blitz April 18 Early 2023"]
[White "Movahed, Sina"]
[Black "Zarubitski, Viachaslau"]
[WhiteFideId "42520835"]
[BlackFideId "13509373"]
[WhiteElo "2225"]
[BlackElo "2284"]
[Result "1-0"]
[Round "07"]
[TimeControl "180+2"]
[Date "2023.04.18"]
[WhiteClock "0:00:13"]
[BlackClock "0:00:01"]

1. e4 {[%clk 0:03:00]}  e5 {[%clk 0:02:56]} 2. Nf3 {[%clk 0:03:00]}  Nf6 {[%clk 0:02:56]} 3. Nxe5 {[%clk 0:03:00]}  d6 {[%clk 0:02:56]} 4. Nf3 {[%clk 0:03:00]}  Nxe4 {[%clk 0:02:57]} 5. d4 {[%clk 0:03:01]}  d5 {[%clk 0:02:55]} 6. Bd3 {[%clk 0:03:01]}  Bd6 {[%clk 0:02:56]} 7. O-O {[%clk 0:03:02]}  O-O {[%clk 0:02:57]} 8. c4 {[%clk 0:03:02]}  c6 {[%clk 0:02:57]} 9. Nc3 {[%clk 0:03:02]}  Nxc3 {[%clk 0:02:57]} 10. bxc3 {[%clk 0:03:03]}  dxc4 {[%clk 0:02:58]} 11. Bxc4 {[%clk 0:03:03]}  Bf5 {[%clk 0:02:59]} 12. Bg5 {[%clk 0:03:02]}  Qa5 {[%clk 0:02:56]} 13. d5 {[%clk 0:02:55]}  Be4 {[%clk 0:02:35]} 14. dxc6 {[%clk 0:02:43]}  Nxc6 {[%clk 0:02:34]} 15. Qxd6 {[%clk 0:02:34]}  Bxf3 {[%clk 0:02:34]} 16. Qg3 {[%clk 0:02:29]}  Bh5 {[%clk 0:02:22]} 17. Rfe1 {[%clk 0:02:23]}  Bg6 {[%clk 0:02:15]} 18. h4 {[%clk 0:02:20]}  Rfe8 {[%clk 0:02:00]} 19. Rad1 {[%clk 0:01:50]}  Qc5 {[%clk 0:01:10]} 20. Bb3 {[%clk 0:01:41]}  Rxe1+ {[%clk 0:00:48]} 21. Rxe1 {[%clk 0:01:42]}  a5 {[%clk 0:00:45]} 22. Qc7 {[%clk 0:01:32]}  Qb5 {[%clk 0:00:23]} 23. Qd6 {[%clk 0:01:05]}  a4 {[%clk 0:00:19]} 24. Bd5 {[%clk 0:01:04]}  h6 {[%clk 0:00:12]} 25. Bxh6 {[%clk 0:00:44]}  Kh7 {[%clk 0:00:12]} 26. Bg5 {[%clk 0:00:38]}  Qd3 {[%clk 0:00:05]} 27. h5 {[%clk 0:00:36]}  Bf5 {[%clk 0:00:05]} 28. c4 {[%clk 0:00:20]}  a3 {[%clk 0:00:04]} 29. Kh2 {[%clk 0:00:18]}  Ra4 {[%clk 0:00:02]} 30. Re3 {[%clk 0:00:14]}  Qd1 {[%clk 0:00:01]} 31. Rf3 {[%clk 0:00:13]} 1-0


[Site "https://www.chess.com"]

[Event "Titled Tuesday Blitz April 18 Early 2023"]
[White "Skatchkov, Valery"]
[Black "Samsonkin, Artiom"]
[WhiteFideId "24195812"]
[BlackFideId "13503111"]
[WhiteElo "2262"]
[BlackElo "2524"]
[Result "0-1"]
[Round "07"]
[TimeControl "180+2"]
[Date "2023.04.18"]
[WhiteClock "0:01:30"]
[BlackClock "0:01:00"]

1. d4 {[%clk 0:03:00]}  Nf6 {[%clk 0:02:58]} 2. c4 {[%clk 0:02:59]}  g6 {[%clk 0:02:58]} 3. Nc3 {[%clk 0:02:51]}  Bg7 {[%clk 0:02:57]} 4. e4 {[%clk 0:02:50]}  d6 {[%clk 0:02:57]} 5. h3 {[%clk 0:02:46]}  O-O {[%clk 0:02:58]} 6. Bg5 {[%clk 0:02:45]}  Nbd7 {[%clk 0:02:37]} 7. Bd3 {[%clk 0:02:44]}  h6 {[%clk 0:02:25]} 8. Be3 {[%clk 0:02:43]}  e5 {[%clk 0:02:18]} 9. d5 {[%clk 0:02:39]}  Nh5 {[%clk 0:02:16]} 10. Nge2 {[%clk 0:02:33]}  a5 {[%clk 0:02:05]} 11. Qd2 {[%clk 0:02:32]}  Kh7 {[%clk 0:02:05]} 12. g4 {[%clk 0:02:32]}  Nf4 {[%clk 0:02:03]} 13. Nxf4 {[%clk 0:02:32]}  exf4 {[%clk 0:02:04]} 14. Bxf4 {[%clk 0:02:33]}  Ne5 {[%clk 0:02:01]} 15. Be2 {[%clk 0:02:32]}  f5 {[%clk 0:01:55]} 16. gxf5 {[%clk 0:02:25]}  gxf5 {[%clk 0:01:55]} 17. O-O-O {[%clk 0:02:23]}  fxe4 {[%clk 0:01:42]} 18. Nxe4 {[%clk 0:02:14]}  Qh4 {[%clk 0:01:34]} 19. Bxe5 {[%clk 0:02:11]}  Bxe5 {[%clk 0:01:30]} 20. Kb1 {[%clk 0:02:08]}  Qxe4+ {[%clk 0:01:22]} 21. Ka1 {[%clk 0:02:05]}  Qf4 {[%clk 0:01:18]} 22. Qc2+ {[%clk 0:01:59]}  Bf5 {[%clk 0:01:17]} 23. Bd3 {[%clk 0:01:59]}  Bxd3 {[%clk 0:01:18]} 24. Rxd3 {[%clk 0:02:00]}  Qf5 {[%clk 0:01:19]} 25. f4 {[%clk 0:01:55]}  Bg7 {[%clk 0:01:14]} 26. Qd2 {[%clk 0:01:48]}  Rae8 {[%clk 0:01:14]} 27. Rg3 {[%clk 0:01:48]}  Qxf4 {[%clk 0:01:09]} 28. Qc2+ {[%clk 0:01:44]}  Qe4 {[%clk 0:01:08]} 29. Qd1 {[%clk 0:01:41]}  Rf2 {[%clk 0:01:02]} 30. Rb3 {[%clk 0:01:31]}  a4 {[%clk 0:01:01]} 31. Rxb7 {[%clk 0:01:30]}  a3 {[%clk 0:01:00]} 0-1


[Site "https://www.chess.com"]

[Event "Titled Tuesday Blitz April 18 Early 2023"]
[White "Bharath Subramaniyam H"]
[Black "Sokolovsky, Yahli"]
[WhiteFideId "46634827"]
[BlackFideId "2820242"]
[WhiteElo "2395"]
[BlackElo "2316"]
[Result "1-0"]
[Round "07"]
[TimeControl "180+2"]
[Date "2023.04.18"]
[WhiteClock "0:00:46"]
[BlackClock "0:00:04"]

1. e4 {[%clk 0:02:57]}  d6 {[%clk 0:03:00]} 2. d4 {[%clk 0:02:57]}  Nf6 {[%clk 0:03:01]} 3. Nc3 {[%clk 0:02:58]}  g6 {[%clk 0:03:01]} 4. f4 {[%clk 0:02:58]}  Bg7 {[%clk 0:03:01]} 5. Nf3 {[%clk 0:02:59]}  O-O {[%clk 0:03:02]} 6. Bd3 {[%clk 0:02:59]}  c5 {[%clk 0:02:57]} 7. d5 {[%clk 0:02:58]}  a6 {[%clk 0:02:55]} 8. a4 {[%clk 0:02:57]}  e6 {[%clk 0:02:56]} 9. dxe6 {[%clk 0:02:55]}  Bxe6 {[%clk 0:02:56]} 10. O-O {[%clk 0:02:55]}  Nc6 {[%clk 0:02:57]} 11. f5 {[%clk 0:02:49]}  Bd7 {[%clk 0:02:47]} 12. Kh1 {[%clk 0:02:35]}  Nd4 {[%clk 0:02:18]} 13. Bg5 {[%clk 0:02:33]}  h6 {[%clk 0:02:14]} 14. Bh4 {[%clk 0:02:32]}  Nxf3 {[%clk 0:02:13]} 15. Qxf3 {[%clk 0:02:31]}  g5 {[%clk 0:02:12]} 16. Bg3 {[%clk 0:02:30]}  Bc6 {[%clk 0:02:09]} 17. Rad1 {[%clk 0:02:19]}  Re8 {[%clk 0:02:05]} 18. Rfe1 {[%clk 0:02:18]}  Qe7 {[%clk 0:01:50]} 19. Bc4 {[%clk 0:01:55]}  Rad8 {[%clk 0:01:28]} 20. Nd5 {[%clk 0:01:48]}  Bxd5 {[%clk 0:01:26]} 21. Bxd5 {[%clk 0:01:48]}  Nxd5 {[%clk 0:01:21]} 22. exd5 {[%clk 0:01:44]}  Qf6 {[%clk 0:01:17]} 23. c3 {[%clk 0:01:44]}  Bf8 {[%clk 0:01:08]} 24. h4 {[%clk 0:01:33]}  gxh4 {[%clk 0:01:01]} 25. Qg4+ {[%clk 0:01:28]}  Qg5 {[%clk 0:00:59]} 26. Qxh4 {[%clk 0:01:29]}  Qxf5 {[%clk 0:00:50]} 27. Rf1 {[%clk 0:01:29]}  Qg6 {[%clk 0:00:48]} 28. Rf4 {[%clk 0:01:26]}  Be7 {[%clk 0:00:46]} 29. Qh3 {[%clk 0:01:27]}  Bg5 {[%clk 0:00:45]} 30. Rf2 {[%clk 0:01:26]}  Re4 {[%clk 0:00:42]} 31. Rdf1 {[%clk 0:01:26]}  Rde8 {[%clk 0:00:40]} 32. Rxf7 {[%clk 0:01:24]}  Qxf7 {[%clk 0:00:37]} 33. Rxf7 {[%clk 0:01:24]}  Kxf7 {[%clk 0:00:38]} 34. Qd7+ {[%clk 0:01:24]}  R8e7 {[%clk 0:00:28]} 35. Qxd6 {[%clk 0:01:13]}  Bh4 {[%clk 0:00:23]} 36. Bxh4 {[%clk 0:01:05]}  Rxh4+ {[%clk 0:00:24]} 37. Kg1 {[%clk 0:01:06]}  Re1+ {[%clk 0:00:20]} 38. Kf2 {[%clk 0:01:05]}  Rhe4 {[%clk 0:00:21]} 39. Qxc5 {[%clk 0:01:00]}  h5 {[%clk 0:00:15]} 40. Qc7+ {[%clk 0:00:54]}  Kg6 {[%clk 0:00:13]} 41. Qxb7 {[%clk 0:00:50]}  h4 {[%clk 0:00:13]} 42. Qxa6+ {[%clk 0:00:46]}  Kf5 {[%clk 0:00:12]} 43. Qd3 {[%clk 0:00:46]}  Ke5 {[%clk 0:00:05]} 44. d6 {[%clk 0:00:45]}  Rh1 {[%clk 0:00:05]} 45. d7 {[%clk 0:00:45]}  Rf4+ {[%clk 0:00:04]} 46. Ke2 {[%clk 0:00:46]}  Re4+ {[%clk 0:00:04]} 47. Qxe4+ {[%clk 0:00:46]}  Kxe4 {[%clk 0:00:04]} 48. d8=Q {[%clk 0:00:46]} 1-0


[Site "https://www.chess.com"]

[Event "Titled Tuesday Blitz April 18 Early 2023"]
[White "Pajeken, Jakob Leon"]
[Black "Atakishiyev, Elmar"]
[WhiteFideId "12942839"]
[BlackFideId "13410547"]
[WhiteElo "2414"]
[BlackElo "2239"]
[Result "1-0"]
[Round "07"]
[TimeControl "180+2"]
[Date "2023.04.18"]
[WhiteClock "0:00:19"]
[BlackClock "0:00:03"]

1. e4 {[%clk 0:03:00]}  c5 {[%clk 0:02:58]} 2. Nf3 {[%clk 0:03:00]}  e6 {[%clk 0:02:58]} 3. d4 {[%clk 0:03:00]}  cxd4 {[%clk 0:02:59]} 4. Nxd4 {[%clk 0:03:01]}  a6 {[%clk 0:03:00]} 5. a3 {[%clk 0:03:01]}  Qc7 {[%clk 0:03:00]} 6. c4 {[%clk 0:03:00]}  Nf6 {[%clk 0:03:00]} 7. Nc3 {[%clk 0:03:00]}  d6 {[%clk 0:03:00]} 8. Be3 {[%clk 0:02:57]}  b6 {[%clk 0:03:00]} 9. Bd3 {[%clk 0:02:56]}  Bb7 {[%clk 0:02:59]} 10. Qe2 {[%clk 0:02:53]}  Nbd7 {[%clk 0:02:58]} 11. f3 {[%clk 0:02:41]}  Be7 {[%clk 0:02:58]} 12. Rc1 {[%clk 0:02:40]}  O-O {[%clk 0:02:58]} 13. b4 {[%clk 0:02:39]}  Rac8 {[%clk 0:02:58]} 14. O-O {[%clk 0:02:39]}  Qb8 {[%clk 0:02:56]} 15. Kh1 {[%clk 0:02:33]}  Rfe8 {[%clk 0:02:54]} 16. f4 {[%clk 0:02:24]}  Bf8 {[%clk 0:02:35]} 17. Bb1 {[%clk 0:02:19]}  Qa8 {[%clk 0:01:46]} 18. Bd2 {[%clk 0:02:13]}  h5 {[%clk 0:01:44]} 19. Nf3 {[%clk 0:02:06]}  b5 {[%clk 0:01:39]} 20. cxb5 {[%clk 0:01:59]}  axb5 {[%clk 0:01:39]} 21. Nxb5 {[%clk 0:01:58]}  Rxc1 {[%clk 0:01:38]} 22. Rxc1 {[%clk 0:01:58]}  Ba6 {[%clk 0:01:31]} 23. a4 {[%clk 0:01:56]}  Nb6 {[%clk 0:01:29]} 24. Bd3 {[%clk 0:01:55]}  Rc8 {[%clk 0:01:21]} 25. Nc7 {[%clk 0:01:53]}  Bxd3 {[%clk 0:01:20]} 26. Nxa8 {[%clk 0:01:46]}  Bxe2 {[%clk 0:01:15]} 27. Nxb6 {[%clk 0:01:45]}  Rxc1+ {[%clk 0:01:09]} 28. Bxc1 {[%clk 0:01:45]}  Nxe4 {[%clk 0:01:10]} 29. Nd4 {[%clk 0:01:41]}  Bd3 {[%clk 0:01:05]} 30. Be3 {[%clk 0:01:38]}  e5 {[%clk 0:01:01]} 31. fxe5 {[%clk 0:01:34]}  dxe5 {[%clk 0:01:02]} 32. Nc6 {[%clk 0:01:32]}  f5 {[%clk 0:00:55]} 33. Nxe5 {[%clk 0:01:30]}  Bc2 {[%clk 0:00:50]} 34. Nc6 {[%clk 0:01:25]}  Nc3 {[%clk 0:00:43]} 35. a5 {[%clk 0:01:12]}  Be4 {[%clk 0:00:44]} 36. Nd8 {[%clk 0:00:54]}  Bxb4 {[%clk 0:00:40]} 37. a6 {[%clk 0:00:54]}  Nd5 {[%clk 0:00:36]} 38. Nxd5 {[%clk 0:00:43]}  Bxd5 {[%clk 0:00:37]} 39. Nb7 {[%clk 0:00:39]}  h4 {[%clk 0:00:30]} 40. Bc5 {[%clk 0:00:29]}  Bd2 {[%clk 0:00:14]} 41. Kg1 {[%clk 0:00:27]}  g5 {[%clk 0:00:14]} 42. Nd6 {[%clk 0:00:27]}  f4 {[%clk 0:00:14]} 43. Nf5 {[%clk 0:00:26]}  Kf7 {[%clk 0:00:13]} 44. Ne7 {[%clk 0:00:25]}  Be4 {[%clk 0:00:12]} 45. Nc8 {[%clk 0:00:25]}  g4 {[%clk 0:00:11]} 46. Nd6+ {[%clk 0:00:25]}  Ke6 {[%clk 0:00:08]} 47. Nxe4 {[%clk 0:00:25]}  Ba5 {[%clk 0:00:02]} 48. a7 {[%clk 0:00:25]}  g3 {[%clk 0:00:03]} 49. hxg3 {[%clk 0:00:25]}  fxg3 {[%clk 0:00:02]} 50. a8=Q {[%clk 0:00:25]}  Be1 {[%clk 0:00:03]} 51. Qc6+ {[%clk 0:00:24]}  Ke5 {[%clk 0:00:03]} 52. Qd6+ {[%clk 0:00:22]}  Kxe4 {[%clk 0:00:03]} 53. Qe6+ {[%clk 0:00:22]}  Kf4 {[%clk 0:00:02]} 54. Qxe1 {[%clk 0:00:23]}  h3 {[%clk 0:00:03]} 55. gxh3 {[%clk 0:00:24]}  g2 {[%clk 0:00:03]} 56. Qf2+ {[%clk 0:00:22]}  Kg5 {[%clk 0:00:03]} 57. Be3+ {[%clk 0:00:21]}  Kh5 {[%clk 0:00:04]} 58. Qxg2 {[%clk 0:00:19]}  Kh4 {[%clk 0:00:03]} 59. Qg4# {[%clk 0:00:19]} 1-0


[Site "https://www.chess.com"]

[Event "Titled Tuesday Blitz April 18 Early 2023"]
[White "Taichman, Ori"]
[Black "Yuan, Qingyu"]
[WhiteFideId "2804069"]
[BlackFideId "8609772"]
[WhiteElo "2237"]
[BlackElo "2359"]
[Result "0-1"]
[Round "07"]
[TimeControl "180+2"]
[Date "2023.04.18"]
[WhiteClock "0:00:32"]
[BlackClock "0:00:18"]

1. e4 {[%clk 0:03:00]}  e5 {[%clk 0:03:00]} 2. d4 {[%clk 0:02:59]}  exd4 {[%clk 0:03:00]} 3. Qxd4 {[%clk 0:03:00]}  Nc6 {[%clk 0:03:01]} 4. Qe3 {[%clk 0:02:52]}  Nf6 {[%clk 0:03:00]} 5. Nc3 {[%clk 0:02:52]}  Bb4 {[%clk 0:03:01]} 6. Bd2 {[%clk 0:02:53]}  O-O {[%clk 0:03:01]} 7. O-O-O {[%clk 0:02:53]}  Re8 {[%clk 0:03:02]} 8. Qg3 {[%clk 0:02:52]}  Nxe4 {[%clk 0:03:02]} 9. Nxe4 {[%clk 0:02:53]}  Rxe4 {[%clk 0:03:03]} 10. c3 {[%clk 0:02:53]}  Be7 {[%clk 0:02:43]} 11. Nf3 {[%clk 0:02:53]}  d5 {[%clk 0:02:34]} 12. Bf4 {[%clk 0:02:53]}  Bf5 {[%clk 0:02:03]} 13. Bd3 {[%clk 0:02:51]}  Qc8 {[%clk 0:01:50]} 14. Bxe4 {[%clk 0:02:40]}  Bxe4 {[%clk 0:01:50]} 15. Ng5 {[%clk 0:02:27]}  Bg6 {[%clk 0:01:30]} 16. Qh3 {[%clk 0:02:26]}  Bf5 {[%clk 0:01:24]} 17. g4 {[%clk 0:02:22]}  Bxg5 {[%clk 0:01:18]} 18. Bxg5 {[%clk 0:02:16]}  Bxg4 {[%clk 0:01:18]} 19. Qd3 {[%clk 0:01:48]}  Bxd1 {[%clk 0:01:17]} 20. Rxd1 {[%clk 0:01:49]}  h6 {[%clk 0:01:04]} 21. Bh4 {[%clk 0:01:35]}  Qg4 {[%clk 0:00:53]} 22. Bg3 {[%clk 0:01:31]}  d4 {[%clk 0:00:50]} 23. cxd4 {[%clk 0:01:30]}  Rd8 {[%clk 0:00:49]} 24. d5 {[%clk 0:01:10]}  Nb4 {[%clk 0:00:49]} 25. Qb3 {[%clk 0:01:09]}  Qg5+ {[%clk 0:00:39]} 26. f4 {[%clk 0:01:03]}  Qe7 {[%clk 0:00:39]} 27. f5 {[%clk 0:00:59]}  Qc5+ {[%clk 0:00:35]} 28. Kb1 {[%clk 0:00:45]}  Rxd5 {[%clk 0:00:32]} 29. Rc1 {[%clk 0:00:43]}  Qb5 {[%clk 0:00:26]} 30. Rxc7 {[%clk 0:00:40]}  Qf1+ {[%clk 0:00:24]} 31. Rc1 {[%clk 0:00:39]}  Qxf5+ {[%clk 0:00:24]} 32. Ka1 {[%clk 0:00:38]}  Nc2+ {[%clk 0:00:23]} 33. Kb1 {[%clk 0:00:38]}  Nd4+ {[%clk 0:00:19]} 34. Qc2 {[%clk 0:00:32]}  Nxc2 {[%clk 0:00:18]} 0-1


[Site "https://www.chess.com"]

[Event "Titled Tuesday Blitz April 18 Early 2023"]
[White "Yelisieiev, Yevhenii"]
[Black "chessfatbear"]
[WhiteFideId "14139642"]
[WhiteElo "2425"]
[BlackElo "2762"]
[Result "0-1"]
[Round "07"]
[TimeControl "180+2"]
[Date "2023.04.18"]
[WhiteClock "0:00:10"]
[BlackClock "0:00:04"]

1. d4 {[%clk 0:03:00]}  Nf6 {[%clk 0:02:54]} 2. Nf3 {[%clk 0:03:01]}  g6 {[%clk 0:02:54]} 3. g3 {[%clk 0:03:01]}  Bg7 {[%clk 0:02:54]} 4. Bg2 {[%clk 0:03:02]}  O-O {[%clk 0:02:54]} 5. O-O {[%clk 0:03:02]}  d5 {[%clk 0:02:55]} 6. c4 {[%clk 0:02:57]}  c6 {[%clk 0:02:55]} 7. b3 {[%clk 0:02:55]}  a5 {[%clk 0:02:54]} 8. Bb2 {[%clk 0:02:44]}  a4 {[%clk 0:02:53]} 9. Nbd2 {[%clk 0:02:43]}  Bf5 {[%clk 0:02:48]} 10. Nh4 {[%clk 0:02:32]}  Be6 {[%clk 0:02:46]} 11. e4 {[%clk 0:02:28]}  dxe4 {[%clk 0:02:33]} 12. Nxe4 {[%clk 0:02:27]}  axb3 {[%clk 0:02:32]} 13. axb3 {[%clk 0:02:25]}  Rxa1 {[%clk 0:02:32]} 14. Qxa1 {[%clk 0:02:24]}  Nxe4 {[%clk 0:02:30]} 15. Bxe4 {[%clk 0:02:24]}  Bh3 {[%clk 0:01:55]} 16. Rd1 {[%clk 0:02:20]}  Qb6 {[%clk 0:01:47]} 17. d5 {[%clk 0:02:13]}  Bxb2 {[%clk 0:01:47]} 18. Qxb2 {[%clk 0:02:13]}  cxd5 {[%clk 0:01:42]} 19. Rxd5 {[%clk 0:02:04]}  Nc6 {[%clk 0:01:39]} 20. Ng2 {[%clk 0:01:48]}  Nb4 {[%clk 0:00:43]} 21. Rb5 {[%clk 0:01:25]}  Qd6 {[%clk 0:00:43]} 22. Ne3 {[%clk 0:01:25]}  Rd8 {[%clk 0:00:41]} 23. Qe2 {[%clk 0:00:51]}  b6 {[%clk 0:00:37]} 24. Nd5 {[%clk 0:00:44]}  Nxd5 {[%clk 0:00:32]} 25. Rxd5 {[%clk 0:00:44]}  Qc7 {[%clk 0:00:30]} 26. Qd2 {[%clk 0:00:43]}  Rxd5 {[%clk 0:00:29]} 27. Qxd5 {[%clk 0:00:44]}  Kg7 {[%clk 0:00:18]} 28. Bg2 {[%clk 0:00:43]}  e6 {[%clk 0:00:15]} 29. Qd4+ {[%clk 0:00:42]}  e5 {[%clk 0:00:15]} 30. Qd5 {[%clk 0:00:39]}  Bxg2 {[%clk 0:00:09]} 31. Kxg2 {[%clk 0:00:39]}  Qc5 {[%clk 0:00:08]} 32. Qd2 {[%clk 0:00:28]}  Qa3 {[%clk 0:00:04]} 33. Qe3 {[%clk 0:00:26]}  Qc5 {[%clk 0:00:03]} 34. Kf3 {[%clk 0:00:25]}  f5 {[%clk 0:00:03]} 35. Qxc5 {[%clk 0:00:21]}  bxc5 {[%clk 0:00:03]} 36. Ke3 {[%clk 0:00:22]}  Kf6 {[%clk 0:00:03]} 37. Kd3 {[%clk 0:00:22]}  e4+ {[%clk 0:00:02]} 38. Kc3 {[%clk 0:00:22]}  g5 {[%clk 0:00:03]} 39. b4 {[%clk 0:00:20]}  cxb4+ {[%clk 0:00:03]} 40. Kxb4 {[%clk 0:00:21]}  f4 {[%clk 0:00:04]} 41. c5 {[%clk 0:00:18]}  e3 {[%clk 0:00:02]} 42. fxe3 {[%clk 0:00:11]}  f3 {[%clk 0:00:02]} 43. c6 {[%clk 0:00:12]}  Ke7 {[%clk 0:00:02]} 44. Kc5 {[%clk 0:00:10]}  f2 {[%clk 0:00:02]} 45. Kb6 {[%clk 0:00:09]}  f1=Q {[%clk 0:00:02]} 46. c7 {[%clk 0:00:08]}  Kd7 {[%clk 0:00:02]} 47. Kb7 {[%clk 0:00:08]}  Qb1+ {[%clk 0:00:02]} 48. Ka6 {[%clk 0:00:09]}  Kxc7 {[%clk 0:00:03]} 49. Ka5 {[%clk 0:00:10]}  Qb3 {[%clk 0:00:03]} 50. e4 {[%clk 0:00:09]}  Kc6 {[%clk 0:00:03]} 51. e5 {[%clk 0:00:10]}  Qb5# {[%clk 0:00:04]} 0-1


[Site "https://www.chess.com"]

[Event "Titled Tuesday Blitz April 18 Early 2023"]
[White "AyMitecK"]
[Black "Cherniaiev, Tykhon"]
[BlackFideId "14182360"]
[WhiteElo "2567"]
[BlackElo "2450"]
[Result "0-1"]
[Round "07"]
[TimeControl "180+2"]
[Date "2023.04.18"]
[WhiteClock "0:01:03"]
[BlackClock "0:00:13"]

1. e4 {[%clk 0:03:00]}  e5 {[%clk 0:03:00]} 2. Nf3 {[%clk 0:02:58]}  Nc6 {[%clk 0:03:00]} 3. Bc4 {[%clk 0:02:57]}  Bc5 {[%clk 0:02:58]} 4. c3 {[%clk 0:02:56]}  Nf6 {[%clk 0:02:57]} 5. d3 {[%clk 0:02:57]}  d6 {[%clk 0:02:58]} 6. O-O {[%clk 0:02:56]}  a6 {[%clk 0:02:58]} 7. Nbd2 {[%clk 0:02:50]}  O-O {[%clk 0:02:50]} 8. Bb3 {[%clk 0:02:49]}  h6 {[%clk 0:02:49]} 9. h3 {[%clk 0:02:49]}  Be6 {[%clk 0:02:47]} 10. Bc2 {[%clk 0:02:49]}  Ba7 {[%clk 0:02:44]} 11. Re1 {[%clk 0:02:49]}  Re8 {[%clk 0:02:43]} 12. Nf1 {[%clk 0:02:49]}  d5 {[%clk 0:02:20]} 13. Qe2 {[%clk 0:02:47]}  Qd7 {[%clk 0:02:16]} 14. g4 {[%clk 0:02:45]}  Rad8 {[%clk 0:01:54]} 15. Ng3 {[%clk 0:02:41]}  b5 {[%clk 0:01:53]} 16. Nh4 {[%clk 0:02:38]}  Nxg4 {[%clk 0:01:08]} 17. hxg4 {[%clk 0:02:21]}  Bxg4 {[%clk 0:01:09]} 18. Qd2 {[%clk 0:02:15]}  dxe4 {[%clk 0:01:06]} 19. Rxe4 {[%clk 0:02:02]}  f5 {[%clk 0:00:59]} 20. Rxg4 {[%clk 0:01:49]}  fxg4 {[%clk 0:00:58]} 21. Qe2 {[%clk 0:01:50]}  Rf8 {[%clk 0:00:29]} 22. d4 {[%clk 0:01:45]}  Bxd4 {[%clk 0:00:16]} 23. cxd4 {[%clk 0:01:37]}  Nxd4 {[%clk 0:00:17]} 24. Qe4 {[%clk 0:01:35]}  Nxc2 {[%clk 0:00:17]} 25. Qxc2 {[%clk 0:01:36]}  Qd1+ {[%clk 0:00:17]} 26. Qxd1 {[%clk 0:01:36]}  Rxd1+ {[%clk 0:00:18]} 27. Kg2 {[%clk 0:01:37]}  Rf6 {[%clk 0:00:13]} 28. b3 {[%clk 0:01:34]}  Rc6 {[%clk 0:00:09]} 29. Bb2 {[%clk 0:01:33]}  Rxa1 {[%clk 0:00:09]} 30. Bxa1 {[%clk 0:01:34]}  Rc2 {[%clk 0:00:07]} 31. a4 {[%clk 0:01:32]}  bxa4 {[%clk 0:00:07]} 32. bxa4 {[%clk 0:01:32]}  Ra2 {[%clk 0:00:08]} 33. Bxe5 {[%clk 0:01:32]}  Rxa4 {[%clk 0:00:09]} 34. Bxc7 {[%clk 0:01:33]}  a5 {[%clk 0:00:09]} 35. Nhf5 {[%clk 0:01:28]}  Ra2 {[%clk 0:00:09]} 36. Ne3 {[%clk 0:01:26]}  a4 {[%clk 0:00:09]} 37. Nxg4 {[%clk 0:01:26]}  a3 {[%clk 0:00:09]} 38. Bd6 {[%clk 0:01:26]}  Ra1 {[%clk 0:00:10]} 39. Be5 {[%clk 0:01:25]}  Rb1 {[%clk 0:00:09]} 40. Ne3 {[%clk 0:01:23]}  a2 {[%clk 0:00:08]} 41. Nc2 {[%clk 0:01:23]}  Rc1 {[%clk 0:00:09]} 42. Na1 {[%clk 0:01:23]}  Kf7 {[%clk 0:00:07]} 43. Kf3 {[%clk 0:01:22]}  g6 {[%clk 0:00:07]} 44. Ne2 {[%clk 0:01:22]}  Re1 {[%clk 0:00:06]} 45. Bc3 {[%clk 0:01:20]}  Rb1 {[%clk 0:00:05]} 46. Ke3 {[%clk 0:01:17]}  h5 {[%clk 0:00:06]} 47. Kd2 {[%clk 0:01:07]}  h4 {[%clk 0:00:06]} 48. Nc1 {[%clk 0:01:07]}  h3 {[%clk 0:00:06]} 49. Be5 {[%clk 0:01:07]}  Rxa1 {[%clk 0:00:06]} 50. Bxa1 {[%clk 0:00:56]}  h2 {[%clk 0:00:06]} 51. Nxa2 {[%clk 0:00:57]}  h1=Q {[%clk 0:00:06]} 52. Bd4 {[%clk 0:00:58]}  Qd5 {[%clk 0:00:06]} 53. Ke3 {[%clk 0:00:57]}  Qxa2 {[%clk 0:00:06]} 54. Ke4 {[%clk 0:00:58]}  Ke6 {[%clk 0:00:07]} 55. f3 {[%clk 0:00:59]}  Qd5+ {[%clk 0:00:07]} 56. Ke3 {[%clk 0:00:59]}  Kf5 {[%clk 0:00:08]} 57. Kd3 {[%clk 0:00:59]}  Qxf3+ {[%clk 0:00:08]} 58. Kc4 {[%clk 0:00:59]}  g5 {[%clk 0:00:08]} 59. Bc3 {[%clk 0:00:59]}  g4 {[%clk 0:00:09]} 60. Bd4 {[%clk 0:01:00]}  g3 {[%clk 0:00:10]} 61. Bc5 {[%clk 0:01:01]}  g2 {[%clk 0:00:11]} 62. Bg1 {[%clk 0:01:01]}  Ke4 {[%clk 0:00:12]} 63. Bd4 {[%clk 0:01:02]}  Qd3+ {[%clk 0:00:12]} 64. Kb4 {[%clk 0:01:02]}  Qxd4+ {[%clk 0:00:13]} 65. Kb5 {[%clk 0:01:03]}  g1=Q {[%clk 0:00:13]} 0-1


[Site "https://www.chess.com"]